bitfinex-derivatives/quotes_BNBF0:USTF0_20250908
["timestamp","ask_amount","ask_price","bid_price","bid_amount"]
[1757370598588,0.64718208,877.33,876.29,0.19796123]
[1757370598788,0.64718208,877.32,876.29,0.19796123]
[1757370599092,0.64718208,877.31,876.29,0.19796123]
[1757370599289,0.64718208,877.3,876.29,0.19796123]
[1757370599492,0.64718208,877.29,876.29,0.19796123]
[1757370599694,0.64718208,877.28,876.29,0.19796123]
[1757370599893,0.64718208,877.27,876.29,0.19796123]
[1757370600093,0.64718208,877.26,876.29,0.19796123]
[1757370600393,0.64718208,877.25,876.29,0.19796123]
[1757370600592,0.64718208,877.24,876.29,0.19796123]
[1757370600790,0.64718208,877.23,876.29,0.19796123]
[1757370600993,0.64718208,877.22,876.29,0.19796123]
[1757370601192,2.5403656,877.83,876.29,0.19796123]
[1757370601391,0.64588158,877.82,876.29,0.19796123]
[1757370601595,0.64588158,877.81,876.29,0.19796123]
[1757370601796,0.64588158,877.8,876.29,0.19796123]
[1757370602095,0.64588158,877.79,876.29,0.19796123]
[1757370602293,0.64588158,877.78,876.29,0.19796123]
[1757370602495,2.5403656,877.96,876.29,0.19796123]
[1757370602496,0.64588158,877.77,876.29,0.19796123]
[1757370602695,0.64588158,877.76,876.29,0.19796123]
[1757370602892,0.64588158,877.75,876.29,0.19796123]
[1757370603092,0.64588158,877.74,876.29,0.19796123]
[1757370603394,0.64588158,877.73,876.29,0.19796123]
[1757370603592,0.64588158,877.72,876.29,0.19796123]
[1757370603795,0.64588158,877.71,876.29,0.19796123]
[1757370603991,0.64588158,877.7,876.29,0.19796123]
[1757370604196,0.64588158,877.69,876.29,0.19796123]
[1757370604398,3.5710953,878.41,876.29,0.19796123]
[1757370604399,0.64588158,877.68,876.29,0.19796123]
[1757370604599,0.64588158,877.67,876.29,0.19796123]
[1757370604794,0.64588158,877.66,876.29,0.19796123]
[1757370604997,0.64588158,877.65,876.29,0.19796123]
[1757370605195,0.64588158,877.64,876.29,0.19796123]
[1757370605499,0.64588158,877.63,876.29,0.19796123]
[1757370605699,0.64588158,877.62,876.29,0.19796123]
[1757370605896,0.64588158,877.61,876.29,0.19796123]
[1757370606095,0.64588158,877.6,876.29,0.19796123]
[1757370606298,0.64588158,877.59,876.29,0.19796123]
[1757370606600,0.64588158,877.58,876.29,0.19796123]
[1757370606898,0.64588158,877.57,876.29,0.19796123]
[1757370607096,0.64588158,877.56,876.29,0.19796123]
[1757370607300,0.64588158,877.55,876.29,0.19796123]
[1757370607497,0.64588158,877.54,876.29,0.19796123]
[1757370607795,0.64588158,877.53,876.29,0.19796123]
[1757370607999,0.64588158,877.52,876.29,0.19796123]
[1757370608197,0.64588158,877.51,876.29,0.19796123]
[1757370608400,0.64588158,877.5,876.29,0.19796123]
[1757370608700,0.64588158,877.49,876.29,0.19796123]
[1757370608995,0.64588158,877.48,876.29,0.19796123]
[1757370609199,0.64588158,877.47,876.29,0.19796123]
[1757370609401,0.64588158,877.46,876.29,0.19796123]
[1757370609599,0.64588158,877.45,876.29,0.19796123]
[1757370609804,0.64588158,877.44,876.29,0.19796123]
[1757370610002,0.64588158,877.43,876.29,0.19796123]
[1757370610302,0.64588158,877.42,876.29,0.19796123]
[1757370610502,0.64588158,877.41,876.29,0.19796123]
[1757370610703,1.5278584,877.26,876.29,0.19796123]
[1757370610998,0.64588158,877.25,876.29,0.19796123]
[1757370611299,0.64588158,877.24,876.29,0.19796123]
[1757370611503,0.64588158,877.23,876.29,0.19796123]
[1757370611698,0.64588158,877.22,876.29,0.19796123]
[1757370611999,1.5278584,877.26,876.29,0.19796123]
[1757370612202,0.64651199,877.25,876.29,0.19796123]
[1757370612402,0.64651199,877.24,876.29,0.19796123]
[1757370612601,0.64651199,877.23,876.29,0.19796123]
[1757370612803,0.64651199,877.22,876.29,0.19796123]
[1757370613103,1.5278584,877.26,876.29,0.19796123]
[1757370613302,2.17447472,877.25,876.29,0.19796123]
[1757370613502,0.64661632,877.24,876.29,0.19796123]
[1757370613702,0.64661632,877.23,876.29,0.19796123]
[1757370613900,0.64661632,877.22,876.29,0.19796123]
[1757370614099,1.5278584,877.26,876.29,0.19796123]
[1757370614301,1.5278584,877.24,876.29,0.19796123]
[1757370614504,0.64673698,877.23,875.05,2.5308841]
[1757370614703,0.64673698,877.22,876.38,0.19810322]
[1757370614900,1.5278584,877.24,875.07,2.5308841]
[1757370615103,0.6469242,877.23,875.07,2.5308841]
[1757370615303,0.6469242,877.22,876.46,0.19810435]
[1757370615502,1.5278584,877.31,874.93,2.5308841]
[1757370615701,0.64693008,877.3,876.53,0.19811224]
[1757370616003,0.64693008,877.29,874.94,2.5308841]
[1757370616203,0.64693008,877.28,874.94,2.5308841]
[1757370616401,0.64693008,877.27,876.6,0.19810773]
[1757370616601,0.64693008,877.26,874.94,2.5308841]
[1757370616801,0.64693008,877.25,876.66,0.19810886]
[1757370617000,0.64693008,877.24,876.66,0.19810886]
[1757370617200,0.64693008,877.23,874.94,2.5308841]
[1757370617501,0.64693008,877.22,876.71,0.19811055]
[1757370617706,1.5278584,877.31,874.92,2.5308841]
[1757370617902,0.64700529,877.3,876.75,0.1981128]
[1757370618106,0.64700529,877.29,876.75,0.1981128]
[1757370618402,0.64700529,877.28,876.8,0.19811111]
[1757370618602,0.64700529,877.27,876.8,0.19811111]
[1757370618806,0.64700529,877.26,876.8,0.19811111]
[1757370619006,0.64700529,877.25,876.8,0.19811111]
[1757370619306,0.64700529,877.24,876.8,0.19811111]
[1757370619505,0.64700529,877.23,876.8,0.19811111]
[1757370619806,0.64700529,877.22,876.8,0.19811111]
[1757370620007,1.5278584,877.34,876.8,0.19811111]
[1757370620307,0.64701956,877.33,876.8,0.19811111]
[1757370620505,0.64701956,877.32,876.8,0.19811111]
[1757370620704,0.64701956,877.31,876.8,0.19811111]
[1757370620907,0.64701956,877.3,876.8,0.19811111]
[1757370621105,0.64701956,877.29,876.8,0.19811111]
[1757370621304,0.64701956,877.28,876.8,0.19811111]
[1757370621604,0.64701956,877.27,876.8,0.19811111]
[1757370621805,0.64701956,877.26,876.8,0.19811111]
[1757370622003,0.64701956,877.25,876.8,0.19811111]
[1757370622307,0.64701956,877.24,876.8,0.19811111]
[1757370622507,0.64701956,877.23,876.8,0.19811111]
[1757370622706,0.64701956,877.22,876.8,0.19811111]
[1757370622905,1.5278584,877.34,876.8,0.19811111]
[1757370623109,2.17490287,877.33,876.8,0.19811111]
[1757370623304,0.64704447,877.32,876.8,0.19811111]
[1757370623507,0.64704447,877.31,876.8,0.19811111]
[1757370623706,1.5278584,877.25,876.8,0.19811111]
[1757370623910,0.64704447,877.24,876.8,0.19811111]
[1757370624208,1.46315396,877.22,876.8,0.19811111]
[1757370627012,2.34230072,878.41,875.19,2.5308841]
[1757370627211,0.64653432,878.4,875.19,2.5308841]
[1757370627406,0.64653432,878.39,875.16,2.5308841]
[1757370627608,0.64653432,878.38,875.16,2.5308841]
[1757370627813,0.64653432,878.37,875.0,2.5308841]
[1757370628010,0.64653432,878.36,875.0,2.5308841]
[1757370628212,0.64653432,878.35,875.0,2.5308841]
[1757370628412,0.64653432,878.34,875.01,2.5308841]
[1757370628612,0.64653432,878.33,875.01,2.5308841]
[1757370628907,0.64653432,878.32,875.01,2.5308841]
[1757370629112,0.64653432,878.31,875.01,2.5308841]
[1757370629309,3.5710953,879.33,874.51,3.5432377]
[1757370629310,0.64653432,878.3,874.98,2.5308841]
[1757370629512,0.64653432,878.29,874.98,2.5308841]
[1757370629710,0.64653432,878.28,874.98,2.5308841]
[1757370629910,0.64653432,878.27,875.8,0.19800628]
[1757370630209,0.64653432,878.26,875.8,0.19800628]
[1757370630510,0.64653432,878.25,875.8,0.19800628]
[1757370630714,0.64653432,878.24,875.8,0.19800628]
[1757370630914,0.64653432,878.23,875.8,0.19800628]
[1757370631111,0.64653432,878.22,875.8,0.19800628]
[1757370631312,0.64653432,878.21,875.8,0.19800628]
[1757370631516,0.64653432,878.2,875.8,0.19800628]
[1757370631716,0.64653432,878.19,875.8,0.19800628]
[1757370631915,0.64653432,878.18,875.8,0.19800628]
[1757370632113,0.64653432,878.17,875.8,0.19800628]
[1757370632316,0.64653432,878.16,875.8,0.19800628]
[1757370632612,0.64653432,878.15,875.8,0.19800628]
[1757370632817,0.64653432,878.14,875.8,0.19800628]
[1757370633015,0.64653432,878.13,875.8,0.19800628]
[1757370633213,0.64653432,878.12,875.8,0.19800628]
[1757370633415,0.64653432,878.11,875.8,0.19800628]
[1757370633620,0.64653432,878.1,875.8,0.19800628]
[1757370633817,0.64653432,878.09,875.8,0.19800628]
[1757370634018,0.64653432,878.08,875.8,0.19800628]
[1757370634315,0.64653432,878.07,875.8,0.19800628]
[1757370634516,0.64653432,878.06,875.8,0.19800628]
[1757370634715,0.64653432,878.05,875.8,0.19800628]
[1757370634916,0.64653432,878.04,875.8,0.19800628]
[1757370635115,0.64653432,878.03,875.8,0.19800628]
[1757370635318,0.64653432,878.02,875.8,0.19800628]
[1757370635614,0.64653432,878.01,875.8,0.19800628]
[1757370635818,0.64653432,878.0,875.8,0.19800628]
[1757370636018,0.64653432,877.99,875.8,0.19800628]
[1757370636318,2.2721042,879.26,875.8,0.19800628]
[1757370636319,0.64653432,877.98,875.8,0.19800628]
[1757370636516,0.64653432,877.97,875.8,0.19800628]
[1757370636717,0.64653432,877.96,875.8,0.19800628]
[1757370636915,0.64653432,877.95,875.8,0.19800628]
[1757370637221,0.64653432,877.94,875.8,0.19800628]
[1757370637421,0.64653432,877.93,875.8,0.19800628]
[1757370637620,0.64653432,877.92,875.8,0.19800628]
[1757370637920,0.64653432,877.91,875.8,0.19800628]
[1757370638118,0.64653432,877.9,875.8,0.19800628]
[1757370638421,0.64653432,877.89,875.8,0.19800628]
[1757370638625,0.64653432,877.88,875.8,0.19800628]
[1757370638924,0.64653432,877.87,875.8,0.19800628]
[1757370639125,0.64653432,877.86,875.8,0.19800628]
[1757370639328,0.64653432,877.85,875.8,0.19800628]
[1757370639527,0.64653432,877.84,875.8,0.19800628]
[1757370639727,0.64653432,877.83,875.8,0.19800628]
[1757370639929,0.64653432,877.82,875.8,0.19800628]
[1757370640126,0.64653432,877.81,875.8,0.19800628]
[1757370640326,0.64653432,877.8,875.8,0.19800628]
[1757370640525,0.64653432,877.79,875.8,0.19800628]
[1757370640730,0.64653432,877.78,875.8,0.19800628]
[1757370640925,0.64653432,877.77,875.8,0.19800628]
[1757370641128,0.64653432,877.76,875.8,0.19800628]
[1757370641425,0.64653432,877.75,875.8,0.19800628]
[1757370641725,0.64653432,877.74,875.8,0.19800628]
[1757370641926,0.64653432,877.73,875.8,0.19800628]
[1757370642128,0.64653432,877.72,875.8,0.19800628]
[1757370642329,0.64653432,877.71,875.8,0.19800628]
[1757370642530,0.64653432,877.7,875.8,0.19800628]
[1757370642726,0.64653432,877.69,875.8,0.19800628]
[1757370642927,0.64653432,877.68,875.8,0.19800628]
[1757370643127,0.64653432,877.67,875.8,0.19800628]
[1757370643432,0.64653432,877.66,875.8,0.19800628]
[1757370643627,0.64653432,877.65,875.8,0.19800628]
[1757370643827,0.64653432,877.64,875.8,0.19800628]
[1757370644127,0.64653432,877.63,875.8,0.19800628]
[1757370644328,0.64653432,877.62,875.8,0.19800628]
[1757370644532,0.64653432,877.61,875.8,0.19800628]
[1757370644732,0.64653432,877.6,875.8,0.19800628]
[1757370644931,0.64653432,877.59,875.8,0.19800628]
[1757370645133,0.64653432,877.58,875.8,0.19800628]
[1757370645430,0.64094519,877.57,875.8,0.19800628]
[1757370645634,0.64094519,877.56,875.8,0.19800628]
[1757370645833,0.64094519,877.55,875.8,0.19800628]
[1757370646034,1.5221851,877.93,875.8,0.19800628]
[1757370646333,0.64093633,877.92,875.8,0.19800628]
[1757370646532,0.64093633,877.91,875.8,0.19800628]
[1757370646732,0.64093633,877.9,875.8,0.19800628]
[1757370646929,0.64093633,877.89,875.8,0.19800628]
[1757370647131,0.64093633,877.88,875.8,0.19800628]
[1757370647331,0.64093633,877.87,875.8,0.19800628]
[1757370647535,0.64093633,877.86,875.8,0.19800628]
[1757370647832,0.64093633,877.85,875.8,0.19800628]
[1757370648031,0.64093633,877.84,875.8,0.19800628]
[1757370648231,0.64093633,877.83,875.8,0.19800628]
[1757370648435,0.64093633,877.82,875.8,0.19800628]
[1757370648736,0.64093633,877.81,875.8,0.19800628]
[1757370649035,0.64093633,877.8,875.8,0.19800628]
[1757370649235,0.64093633,877.79,875.8,0.19800628]
[1757370649437,0.64093633,877.78,875.8,0.19800628]
[1757370649634,0.64093633,877.77,875.8,0.19800628]
[1757370649837,0.64093633,877.76,875.8,0.19800628]
[1757370650036,0.64093633,877.75,875.8,0.19800628]
[1757370650235,0.64093633,877.74,875.8,0.19800628]
[1757370650438,0.64093633,877.73,875.8,0.19800628]
[1757370650739,0.64093633,877.72,875.8,0.19800628]
[1757370650941,0.64093633,877.71,875.8,0.19800628]
[1757370651137,0.64093633,877.7,875.8,0.19800628]
[1757370651337,0.64093633,877.69,875.8,0.19800628]
[1757370651637,0.64093633,877.68,875.8,0.19800628]
[1757370651841,0.64093633,877.67,875.8,0.19800628]
[1757370652039,0.64093633,877.66,875.8,0.19800628]
[1757370652238,0.64093633,877.65,875.8,0.19800628]
[1757370652437,0.64093633,877.64,875.8,0.19800628]
[1757370652642,0.64093633,877.63,875.8,0.19800628]
[1757370652844,0.64093633,877.62,875.8,0.19800628]
[1757370653037,0.64093633,877.61,875.8,0.19800628]
[1757370653240,0.64093633,877.6,875.8,0.19800628]
[1757370653439,0.64093633,877.59,875.8,0.19800628]
[1757370653641,0.64093633,877.58,875.8,0.19800628]
[1757370653841,0.64093633,877.57,875.8,0.19800628]
[1757370654038,0.64093633,877.56,875.8,0.19800628]
[1757370654342,0.64093633,877.55,875.8,0.19800628]
[1757370654539,0.64093633,877.54,875.8,0.19800628]
[1757370654843,0.64093633,877.53,875.8,0.19800628]
[1757370655042,1.5221851,877.91,875.8,0.19800628]
[1757370655243,0.6408126,877.9,875.8,0.19800628]
[1757370655538,0.6408126,877.89,875.8,0.19800628]
[1757370655743,0.6408126,877.88,875.8,0.19800628]
[1757370655943,0.6408126,877.87,875.8,0.19800628]
[1757370656143,0.6408126,877.86,875.8,0.19800628]
[1757370656343,0.6408126,877.85,875.8,0.19800628]
[1757370656643,0.6408126,877.84,875.8,0.19800628]
[1757370656840,0.6408126,877.83,875.8,0.19800628]
[1757370657044,1.5221851,877.59,875.8,0.19800628]
[1757370657244,0.6408126,877.58,875.8,0.19800628]
[1757370657442,2.1629977,877.57,875.8,0.19800628]
[1757370657745,0.6408126,877.56,875.8,0.19800628]
[1757370658045,0.6408126,877.55,875.8,0.19800628]
[1757370658340,0.6408126,877.54,875.8,0.19800628]
[1757370658545,0.6408126,877.53,875.8,0.19800628]
[1757370658747,0.6408126,877.52,875.8,0.19800628]
[1757370658943,0.6408126,877.51,875.8,0.19800628]
[1757370659147,0.6408126,877.5,875.8,0.19800628]
[1757370659346,0.6408126,877.49,875.8,0.19800628]
[1757370659641,0.6408126,877.48,875.8,0.19800628]
[1757370659943,0.6408126,877.47,875.8,0.19800628]
[1757370660142,0.6408126,877.46,875.8,0.19800628]
[1757370660342,1.5221851,877.67,875.8,0.19800628]
[1757370660541,0.64101895,877.66,875.8,0.19800628]
[1757370660744,0.64101895,877.65,875.8,0.19800628]
[1757370660944,0.64101895,877.64,875.8,0.19800628]
[1757370661147,1.5221851,877.67,875.8,0.19800628]
[1757370661148,0.64101895,877.63,875.8,0.19800628]
[1757370661443,0.64101895,877.62,875.8,0.19800628]
[1757370661647,0.64101895,877.61,875.8,0.19800628]
[1757370661845,1.5221851,877.67,875.8,0.19800628]
[1757370661846,0.64101895,877.6,875.8,0.19800628]
[1757370662144,0.64101895,877.59,875.8,0.19800628]
[1757370662349,0.64101895,877.58,875.8,0.19800628]
[1757370662549,0.64101895,877.57,875.8,0.19800628]
[1757370662749,0.64101895,877.56,875.8,0.19800628]
[1757370662945,0.64101895,877.55,875.8,0.19800628]
[1757370663155,0.64101895,877.54,875.8,0.19800628]
[1757370663351,0.64101895,877.53,875.8,0.19800628]
[1757370663651,0.64101895,877.52,875.8,0.19800628]
[1757370663947,0.64101895,877.51,875.8,0.19800628]
[1757370664147,0.64101895,877.5,875.8,0.19800628]
[1757370664346,0.64101895,877.49,875.8,0.19800628]
[1757370664549,0.64101895,877.48,875.8,0.19800628]
[1757370664745,0.64101895,877.47,875.8,0.19800628]
[1757370664950,0.64101895,877.46,875.8,0.19800628]
[1757370665148,1.5221851,877.68,875.8,0.19800628]
[1757370665352,0.64121615,877.67,875.8,0.19800628]
[1757370665548,1.5221851,877.68,875.8,0.19800628]
[1757370665549,0.64121615,877.66,875.8,0.19800628]
[1757370665854,0.64121615,877.65,875.8,0.19800628]
[1757370666047,0.64121615,877.64,875.8,0.19800628]
[1757370666351,0.64121615,877.63,875.8,0.19800628]
[1757370666548,0.64121615,877.62,875.8,0.19800628]
[1757370666752,0.64121615,877.61,875.8,0.19800628]
[1757370666952,0.64121615,877.6,875.8,0.19800628]
[1757370667152,0.64121615,877.59,875.8,0.19800628]
[1757370667346,0.64121615,877.58,875.8,0.19800628]
[1757370667547,0.64121615,877.57,875.8,0.19800628]
[1757370667748,0.64121615,877.56,875.8,0.19800628]
[1757370667953,0.64121615,877.55,875.8,0.19800628]
[1757370668152,0.64121615,877.54,875.8,0.19800628]
[1757370668353,0.64121615,877.53,875.8,0.19800628]
[1757370668552,0.64121615,877.52,875.8,0.19800628]
[1757370668750,0.64121615,877.51,875.8,0.19800628]
[1757370668951,0.64121615,877.5,875.8,0.19800628]
[1757370669252,0.64121615,877.49,875.8,0.19800628]
[1757370669453,0.64121615,877.48,875.8,0.19800628]
[1757370669649,0.64121615,877.47,875.8,0.19800628]
[1757370669851,0.64121615,877.46,875.8,0.19800628]
[1757370670052,1.5221851,877.79,875.8,0.19800628]
[1757370670352,0.64146384,877.78,875.8,0.19800628]
[1757370670557,0.64146384,877.77,875.8,0.19800628]
[1757370670755,0.64146384,877.76,875.8,0.19800628]
[1757370670956,0.64146384,877.75,875.8,0.19800628]
[1757370671151,0.64146384,877.74,875.8,0.19800628]
[1757370671453,0.64146384,877.73,875.8,0.19800628]
[1757370671650,0.64146384,877.72,875.8,0.19800628]
[1757370671851,0.64146384,877.71,875.8,0.19800628]
[1757370672056,0.64146384,877.7,875.8,0.19800628]
[1757370672255,0.64146384,877.69,875.8,0.19800628]
[1757370672453,0.64146384,877.68,875.8,0.19800628]
[1757370672657,0.64146384,877.67,875.8,0.19800628]
[1757370672952,0.64146384,877.66,875.8,0.19800628]
[1757370673156,0.64146384,877.65,875.8,0.19800628]
[1757370673456,1.5221851,877.44,875.8,0.19800628]
[1757370673656,2.16364894,877.43,875.8,0.19800628]
[1757370673852,0.64146384,877.42,875.8,0.19800628]
[1757370674055,0.64146384,877.41,875.8,0.19800628]
[1757370674253,0.64146384,877.4,875.8,0.19800628]
[1757370674455,0.64146384,877.39,875.8,0.19800628]
[1757370674755,0.64146384,877.38,875.8,0.19800628]
[1757370674956,0.64146384,877.37,875.8,0.19800628]
[1757370675157,0.64146384,877.36,875.8,0.19800628]
[1757370675457,0.64146384,877.35,875.8,0.19800628]
[1757370675655,0.64146384,877.34,875.8,0.19800628]
[1757370675853,0.64146384,877.33,875.8,0.19800628]
[1757370676153,0.64146384,877.32,875.8,0.19800628]
[1757370676354,0.64146384,877.31,875.8,0.19800628]
[1757370676554,0.64146384,877.3,875.8,0.19800628]
[1757370676757,0.64146384,877.29,875.8,0.19800628]
[1757370676957,0.64146384,877.28,875.8,0.19800628]
[1757370677258,1.5221851,877.39,875.8,0.19800628]
[1757370677455,0.64166433,877.38,875.8,0.19800628]
[1757370677658,0.64166433,877.37,875.8,0.19800628]
[1757370677958,0.64166433,877.36,875.8,0.19800628]
[1757370678157,0.64166433,877.35,875.8,0.19800628]
[1757370678459,0.64166433,877.34,875.8,0.19800628]
[1757370678657,0.64166433,877.33,875.8,0.19800628]
[1757370678853,0.64166433,877.32,875.8,0.19800628]
[1757370679058,0.64166433,877.31,875.8,0.19800628]
[1757370679359,0.64166433,877.3,875.8,0.19800628]
[1757370679557,0.64166433,877.29,875.8,0.19800628]
[1757370679857,5.1015647,878.96,875.8,0.19800628]
[1757370679858,1.5221851,877.41,875.8,0.19800628]
[1757370680058,0.64175065,877.4,875.8,0.19800628]
[1757370680258,0.64175065,877.39,875.8,0.19800628]
[1757370680554,0.64175065,877.38,875.8,0.19800628]
[1757370680759,0.64175065,877.37,875.8,0.19800628]
[1757370680960,0.64175065,877.36,875.8,0.19800628]
[1757370681159,0.64175065,877.35,875.8,0.19800628]
[1757370681459,0.64175065,877.34,875.8,0.19800628]
[1757370681659,0.64175065,877.33,875.8,0.19800628]
[1757370681959,0.64175065,877.32,875.8,0.19800628]
[1757370682155,0.64175065,877.31,875.8,0.19800628]
[1757370682356,0.64175065,877.3,875.8,0.19800628]
[1757370682657,1.5221851,877.41,875.8,0.19800628]
[1757370682854,0.64188617,877.4,875.8,0.19800628]
[1757370683055,0.64188617,877.39,875.8,0.19800628]
[1757370683254,0.64188617,877.38,875.8,0.19800628]
[1757370683455,0.64188617,877.37,875.8,0.19800628]
[1757370683755,1.5221851,877.89,875.8,0.19800628]
[1757370683955,0.64206977,877.88,875.8,0.19800628]
[1757370684155,0.64206977,877.87,875.8,0.19800628]
[1757370684359,0.64206977,877.86,875.8,0.19800628]
[1757370684560,0.64206977,877.85,875.8,0.19800628]
[1757370684759,0.64206977,877.84,875.8,0.19800628]
[1757370684956,0.64206977,877.83,875.8,0.19800628]
[1757370685159,0.64206977,877.82,875.8,0.19800628]
[1757370685356,0.64206977,877.81,875.8,0.19800628]
[1757370685560,0.64206977,877.8,875.8,0.19800628]
[1757370685761,0.64206977,877.79,875.8,0.19800628]
[1757370686057,0.64206977,877.78,875.8,0.19800628]
[1757370686360,0.64206977,877.77,875.8,0.19800628]
[1757370686558,1.5221851,877.89,875.8,0.19800628]
[1757370686559,0.64206977,877.76,875.8,0.19800628]
[1757370686758,0.64206977,877.75,875.8,0.19800628]
[1757370686958,0.64206977,877.74,875.8,0.19800628]
[1757370687158,0.64206977,877.73,875.8,0.19800628]
[1757370687361,0.64206977,877.72,875.8,0.19800628]
[1757370687662,0.64206977,877.71,875.8,0.19800628]
[1757370687861,0.64240332,877.7,875.8,0.19800628]
[1757370688058,0.64240332,877.69,875.8,0.19800628]
[1757370688264,0.64240332,877.68,875.8,0.19800628]
[1757370688464,0.64240332,877.67,875.8,0.19800628]
[1757370688760,0.64240332,877.66,875.8,0.19800628]
[1757370688964,0.64240332,877.65,875.8,0.19800628]
[1757370689161,0.64240332,877.64,875.8,0.19800628]
[1757370689461,0.64240332,877.63,875.8,0.19800628]
[1757370689761,0.64240332,877.62,875.8,0.19800628]
[1757370689963,0.64240332,877.61,875.8,0.19800628]
[1757370690161,0.64240332,877.6,875.8,0.19800628]
[1757370690366,0.64240332,877.59,875.8,0.19800628]
[1757370690566,0.64240332,877.58,875.8,0.19800628]
[1757370690767,0.64240332,877.57,875.8,0.19800628]
[1757370690967,0.64240332,877.56,875.8,0.19800628]
[1757370691264,0.64240332,877.55,875.8,0.19800628]
[1757370691467,0.64240332,877.54,875.8,0.19800628]
[1757370691663,0.64240332,877.53,875.8,0.19800628]
[1757370691967,1.5221851,877.8,875.8,0.19800628]
[1757370692165,0.64253058,877.79,875.8,0.19800628]
[1757370692369,0.64253058,877.78,875.8,0.19800628]
[1757370692664,0.64253058,877.77,875.8,0.19800628]
[1757370692864,0.64253058,877.76,875.8,0.19800628]
[1757370693066,0.64253058,877.75,875.8,0.19800628]
[1757370693264,0.64253058,877.74,875.8,0.19800628]
[1757370693466,0.64253058,877.73,875.8,0.19800628]
[1757370693666,0.64253058,877.72,875.8,0.19800628]
[1757370693970,0.64253058,877.71,875.8,0.19800628]
[1757370694166,0.64253058,877.7,875.8,0.19800628]
[1757370694368,0.64253058,877.69,875.8,0.19800628]
[1757370694566,0.64253058,877.68,875.8,0.19800628]
[1757370694776,0.64253058,877.67,875.8,0.19800628]
[1757370694968,1.5221851,877.76,875.8,0.19800628]
[1757370694969,0.64253058,877.66,875.8,0.19800628]
[1757370695167,0.64253058,877.65,875.8,0.19800628]
[1757370695372,0.64253058,877.64,875.8,0.19800628]
[1757370695570,0.64253058,877.63,875.8,0.19800628]
[1757370695769,0.64253058,877.62,875.8,0.19800628]
[1757370695972,0.64253058,877.61,875.8,0.19800628]
[1757370696172,0.64253058,877.6,875.8,0.19800628]
[1757370696370,0.64253058,877.59,875.8,0.19800628]
[1757370696574,0.64253058,877.58,875.8,0.19800628]
[1757370696873,0.64253058,877.57,875.8,0.19800628]
[1757370697173,0.64253058,877.56,875.8,0.19800628]
[1757370697371,1.5221851,877.75,875.8,0.19800628]
[1757370697573,0.64269274,877.74,875.8,0.19800628]
[1757370697771,0.64269274,877.73,875.8,0.19800628]
[1757370697974,0.64269274,877.72,875.8,0.19800628]
[1757370698173,0.64269274,877.71,875.8,0.19800628]
[1757370698376,0.64269274,877.7,875.8,0.19800628]
[1757370698673,0.64269274,877.69,875.8,0.19800628]
[1757370698876,0.64269274,877.68,875.8,0.19800628]
[1757370699176,0.64269274,877.67,875.8,0.19800628]
[1757370699372,0.64269274,877.66,875.8,0.19800628]
[1757370699576,0.64269274,877.65,875.8,0.19800628]
[1757370699778,0.64269274,877.64,875.8,0.19800628]
[1757370699973,0.64269274,877.63,875.8,0.19800628]
[1757370700177,0.64269274,877.62,875.8,0.19800628]
[1757370700372,1.5221851,877.75,875.8,0.19800628]
[1757370700373,0.64269274,877.61,875.8,0.19800628]
[1757370700576,0.64269274,877.6,875.8,0.19800628]
[1757370700774,0.64269274,877.59,875.8,0.19800628]
[1757370700973,0.64269274,877.58,875.8,0.19800628]
[1757370701176,0.64269274,877.57,875.8,0.19800628]
[1757370701472,0.64269274,877.56,875.8,0.19800628]
[1757370701672,1.5221851,877.56,875.8,0.19800628]
[1757370702580,1.5221851,877.65,875.8,0.19800628]
[1757370702778,0.64273861,877.64,875.8,0.19800628]
[1757370702982,0.64273861,877.63,875.8,0.19800628]
[1757370703182,0.64273861,877.62,875.8,0.19800628]
[1757370703382,0.64273861,877.61,875.8,0.19800628]
[1757370703579,0.64273861,877.6,875.8,0.19800628]
[1757370703881,0.64273861,877.59,875.8,0.19800628]
[1757370704079,0.64273861,877.58,875.8,0.19800628]
[1757370704382,0.64273861,877.57,875.8,0.19800628]
[1757370704582,0.64273861,877.56,875.8,0.19800628]
[1757370704780,0.64273861,877.55,875.8,0.19800628]
[1757370704978,1.5221851,877.63,875.8,0.19800628]
[1757370705179,0.64275702,877.62,875.8,0.19800628]
[1757370705380,0.64275702,877.61,875.8,0.19800628]
[1757370705583,0.64275702,877.6,875.8,0.19800628]
[1757370705784,0.64275702,877.59,875.8,0.19800628]
[1757370705985,0.64275702,877.58,875.8,0.19800628]
[1757370706281,0.64275702,877.57,875.8,0.19800628]
[1757370706485,0.64275702,877.56,875.8,0.19800628]
[1757370706685,0.64275702,877.55,875.8,0.19800628]
[1757370706886,1.5221851,877.62,875.8,0.19800628]
[1757370707183,0.64276856,877.61,875.8,0.19800628]
[1757370707383,0.64276856,877.6,875.8,0.19800628]
[1757370707581,0.64276856,877.59,875.8,0.19800628]
[1757370707786,0.64276856,877.58,875.8,0.19800628]
[1757370707986,0.64276856,877.57,875.8,0.19800628]
[1757370708187,0.64276856,877.56,875.8,0.19800628]
[1757370708384,0.64276856,877.55,875.8,0.19800628]
[1757370708582,1.5221851,877.62,875.8,0.19800628]
[1757370708786,0.64277437,877.61,875.8,0.19800628]
[1757370708987,0.64277437,877.6,875.8,0.19800628]
[1757370709185,0.64277437,877.59,875.8,0.19800628]
[1757370709384,0.64277437,877.58,875.8,0.19800628]